Cogmind - Beta 12 @@@ ROGUE MODE // 2023.04.13 @ 00:40:10 Player: Mr Goldstein Result: Destroyed by C-17 Slicer with Concussive RPG Performance ------------- Evolutions (2) 1000 Regions Visited (3) 600 Robots Destroyed (0) 0 Value Destroyed (0) 0 Prototype IDs (0) 0 Alien Tech Used (0) 0 Bonus (7960) 7960 TOTAL SCORE: 9560 Bonus ------- Fragile Parts 500 Gauntlet 1500 No Salvage 500 Pure Core 1000 Scavenger 2000 Simple Hacker 490 Trapped 500 Unstable Evolution 1000 Pacifist 470 Cogmind --------- Core Integrity 0/550 Matter 202/300 Energy 99/100 System Corruption 2% Temperature Cool (0) Movement Core (50) Location -8/Materials Parts ------- > --- POWER (1) -------- (None) > --- PROPULSION (3) --- (None) > --- UTILITY (3) ------ (None) > --- WEAPON (4) ------- (None) > --- INVENTORY (0) ---- (None) Peak State ------------ None Favorites ----------- Power None Propulsion None Utility None Weapon None Build | -11 -10 -9 -8 ------- Run | Jun Mat Mat Mat Slots Evolved 4 | . . 2 2 Power . | . . . . Propulsion 1 | . . . 1 Utility 1 | . . 1 . Weapon 2 | . . 1 1 Parts Attached . | . . . . Power . | . . . . Engine . | . . . . Core . | . . . . Reactor . | . . . . Propulsion . | . . . . Treads . | . . . . Leg . | . . . . Wheel . | . . . . Hover . | . . . . Flight . | . . . . Utility . | . . . . Device . | . . . . Storage . | . . . . Processor . | . . . . Hackware . | . . . . Protection . | . . . . Artifact . | . . . . Weapon . | . . . . Energy Gun . | . . . . Energy Cannon . | . . . . Ballistic Gun . | . . . . Ballistic Cannon . | . . . . Launcher . | . . . . Special Weapon . | . . . . Impact Weapon . | . . . . Slashing Weapon . | . . . . Piercing Weapon . | . . . . Special Melee Weapon . | . . . . Unidentified Prototypes . | . . . . Parts Lost . | . . . . Power . | . . . . Propulsion . | . . . . Utility . | . . . . Weapon . | . . . . Highest Loss Streak . | . . . . To Critical Strikes . | . . . . Average Slot Usage (%) . | . . . . Naked Turns 238 | . 54 112 72 Heaviest Build . | . . . . Greatest Support 3 | 3 3 3 3 Greatest Overweight (x) . | . . . . Average Overweight (x) . | . . . . Largest Inventory Capacity . | . . . . Average Capacity . | . . . . Most Carried . | . . . . Average Carried . | . . . . Final Capacity . | . . . . Final Carried . | . . . . Class Distribution -------------------- 100% | Mutant Dominant Class ---------------- Mutant | -10/Materials Mutant | -9/Materials Mutant | -8/Materials Resources | -11 -10 -9 -8 ----------- Run | Jun Mat Mat Mat Matter Collected 57 | 57 . . . Remotely . | . . . . Salvage Created . | . . . . Parts . | . . . . Haulers Intercepted . | . . . . Recyclers Shooed . | . . . . Parts Field Recycled . | . . . . Retrieved Matter . | . . . . Parts Self-Destructed . | . . . . Prevented . | . . . . Kills | -11 -10 -9 -8 ------- Run | Jun Mat Mat Mat Combat Hostiles Destroyed . | . . . . Classes Destroyed . | . . . . Best Kill Streak . | . . . . Combat Bots Only . | . . . . Max Kills in Single Turn . | . . . . Gunslinging . | . . . . Exploded . | . . . . Melee . | . . . . Uniques/NPCs Destroyed . | . . . . Combat | -11 -10 -9 -8 -------- Run | Jun Mat Mat Mat Damage Taken 1080 | . 220 310 550 Core 1080 | . 220 310 550 Absorbed by Shields . | . . . . Core Remaining (%) 44 | 100 12 22 . Volleys Fired . | . . . . Largest . | . . . . Hottest . | . . . . Shots Fired . | . . . . Gun . | . . . . Cannon . | . . . . Launcher . | . . . . Special . | . . . . Kinetic . | . . . . Thermal . | . . . . Explosive . | . . . . Electromagnetic . | . . . . Robot Hit Streak . | . . . . Robot Miss Streak . | . . . . Penetration Max . | . . . . Secondary Targets . | . . . . Shots Hit Robots . | . . . . Core Hits 4 | . . 1 3 Critical Kills . | . . . . Critical Parts Destroyed . | . . . . Critical Strikes . | . . . . Melee Attacks . | . . . . Impact . | . . . . Slashing . | . . . . Piercing . | . . . . Sneak Attacks . | . . . . Combat Hostiles . | . . . . Follow-up Attacks . | . . . . Damage Inflicted 72 | . 6 30 36 Guns . | . . . . Cannons . | . . . . Explosions . | . . . . Melee . | . . . . Ramming 72 | . 6 30 36 Kinetic . | . . . . Thermal . | . . . . Explosive . | . . . . Electromagnetic . | . . . . Impact . | . . . . Slashing . | . . . . Piercing . | . . . . Highest Corruption 4 | . . 4 2 Average Corruption 2 | . . 2 2 Corruption Purged . | . . . . Corruption Blocked . | . . . . Effects 1 | . . . 1 Energy Discharges 1 | . . . 1 Overload Shots . | . . . . Overflow Damage . | . . . . Projectiles . | . . . . Explosions . | . . . . Melee . | . . . . Knockbacks . | . . . . Impact . | . . . . Kinetic . | . . . . Secondary . | . . . . Self-Inflicted Damage 34 | . 2 15 17 Shots . | . . . . Rammed 13 | . 3 4 6 Targets Rammed 13 | . 3 4 6 Kicked . | . . . . Crushed . | . . . . Highest Temperature . | . . . . Average Temperature . | . . . . Received Heat Transfer 276 | . 24 117 135 Siege Activations . | . . . . Robots Corrupted . | . . . . Combat Hostiles . | . . . . Parts Fried . | . . . . Impact Corruptions . | . . . . Robots Melted . | . . . . Combat Hostiles . | . . . . Parts Melted . | . . . . Heat Transferred . | . . . . Parts Sabotaged . | . . . . Parts Stolen . | . . . . Parts Stripped . | . . . . Power Chain Reactions . | . . . . Missiles Intercepted . | . . . . Alert | -11 -10 -9 -8 ------- Run | Jun Mat Mat Mat Peak Influence 155 | . 22 121 155 Initial 50 | . . 9 50 Average 44 | . 11 49 67 Maximum Alert Level . | . . . . Low Security (%) 100 | 100 100 100 100 Level 1 . | . . . . Level 2 . | . . . . Level 3 . | . . . . Level 4 . | . . . . Level 5 . | . . . . High Security . | . . . . Max Security . | . . . . Squads Dispatched 7 | . 2 3 2 Investigation 2 | . . 1 1 Extermination . | . . . . Reinforcement 5 | . 2 2 1 Assault . | . . . . Garrison . | . . . . Intercept . | . . . . Searches Triggered . | . . . . Construction Impeded . | . . . . Haulers Reinforced . | . . . . Active Scanning Responses . | . . . . Cargo Convoy Interrupts . | . . . . Stealth | -11 -10 -9 -8 --------- Run | Jun Mat Mat Mat Distress Signals 2 | . . 2 . Communications Jammed . | . . . . Distress Signals . | . . . . Times Spotted 32 | . 8 10 14 Peak Tracking Total 12 | . 7 8 12 Tactical Retreats 4 | . . 2 2 Traps | -11 -10 -9 -8 ------- Run | Jun Mat Mat Mat Traps Triggered 8 | . . 6 2 Indirectly . | . . . . Trap Hack Attempts . | . . . . Triggered . | . . . . Disarmed . | . . . . Reprogrammed . | . . . . Reused . | . . . . Traps Extracted . | . . . . Installed . | . . . . Triggered . | . . . . Machines | -11 -10 -9 -8 ---------- Run | Jun Mat Mat Mat Machines Disabled . | . . . . Max in Single Turn . | . . . . Machines Repaired . | . . . . Machines Sabotaged . | . . . . Overloaded Fab Kills . | . . . . Hacking | -11 -10 -9 -8 --------- Run | Jun Mat Mat Mat Machines Accessed 2 | . 1 1 . Terminals 2 | . 1 1 . Fabricators . | . . . . Repair Stations . | . . . . Recycling Units . | . . . . Scanalyzers . | . . . . Garrison Access . | . . . . Total Hacks 5 | . 1 4 . Successful 2 | . 1 1 . Failed 3 | . . 3 . Catastrophic 1 | . . 1 . Database Lockouts . | . . . . Manual . | . . . . Terminals 5 | . 1 4 . Fabricators . | . . . . Repair Stations . | . . . . Recycling Units . | . . . . Scanalyzers . | . . . . Garrison Access . | . . . . Terminal Hacks 2 | . 1 1 . Branch Access Points 2 | . 1 1 . Fabricator Hacks . | . . . . Repair Station Hacks . | . . . . Recycling Unit Hacks . | . . . . Scanalyzer . | . . . . Garrison Access Hacks . | . . . . Unauthorized Hacks . | . . . . Terminals . | . . . . Fabricators . | . . . . Repair Stations . | . . . . Recycling Units . | . . . . Scanalyzers . | . . . . Garrison Access . | . . . . Data Cores Recovered . | . . . . Used . | . . . . Hacking Detections 1 | . . 1 . Full Trace Events 1 | . . 1 . Feedback Events 1 | . . 1 . Corruption 1 | . . 1 . Feedback Blocked . | . . . . Robot Schematics Acquired . | . . . . Robots Built . | . . . . Authchips . | . . . . Time . | . . . . Total Robot Build Rating . | . . . . Part Schematics Acquired . | . . . . Parts Built . | . . . . Authchips . | . . . . Time . | . . . . Total Part Build Rating . | . . . . Parts Repaired . | . . . . Time . | . . . . Parts Recycled . | . . . . Recycled Matter . | . . . . Retrieved Matter . | . . . . Retrieved Components . | . . . . Parts Scanalyzed . | . . . . Part Schematics Acquired . | . . . . Parts Damaged . | . . . . Bothacking | -11 -10 -9 -8 ------------ Run | Jun Mat Mat Mat Used RIF Installer . | . . . . Robots Hacked . | . . . . Non-combat . | . . . . Combat . | . . . . Robot Hacks Applied . | . . . . Relay Couplers Released . | . . . . Fabnet Peak Effective % . | . . . . Robots Rewired . | . . . . Allies Hacked . | . . . . Hacks Repelled . | . . . . Allies | -11 -10 -9 -8 -------- Run | Jun Mat Mat Mat Total Allies . | . . . . Largest Group . | . . . . Highest-Rated Group . | . . . . Highest-Rated Ally . | . . . . Total Orders . | . . . . Ally Attacks . | . . . . Total Damage . | . . . . Kills . | . . . . Allies Corrupted . | . . . . Allies Melted . | . . . . Intel | -11 -10 -9 -8 ------- Run | Jun Mat Mat Mat Robot Analysis Total . | . . . . Derelict Logs Recovered . | . . . . Drone Launches . | . . . . Drone Recoveries . | . . . . Exploration | -11 -10 -9 -8 ------------- Run | Jun Mat Mat Mat Turns Passed 247 | 9 54 112 72 Spaces Moved 465 | 18 101 215 131 Core 465 | 18 101 215 131 Treads . | . . . . Legs . | . . . . Wheels . | . . . . Hover . | . . . . Flight . | . . . . Fastest Speed 50 | 50 50 50 50 Average Speed 50 | 50 50 50 50 Slowest Speed 50 | 50 50 50 50 Overloaded Moves . | . . . . Propulsion Burnouts . | . . . . Robots Hopped . | . . . . Cave-ins Triggered . | . . . . Exploration Rate (%) 21 | 3 33 34 15 Regions Visited 3 Branch Regions . Pre-discovered Areas . | . . . . Known Exits Taken . | . . . . Unknown Exits Taken 3 | 1 1 1 . Scrap Searched . | . . . . Spaces Dug . | . . . . Terrain Destroyed . | . . . . Melee . | . . . . Projectile . | . . . . AOE . | . . . . Terrain Rammed . | . . . . Walls Destroyed . | . . . . Machines Disabled . | . . . . Actions | -11 -10 -9 -8 --------- Run | Jun Mat Mat Mat Total 475 | 17 103 218 137 Wait . | . . . . Move 462 | 17 100 214 131 Hop . | . . . . Pick Up . | . . . . Fast Attach . | . . . . Attach . | . . . . Detach . | . . . . Swap . | . . . . Drop . | . . . . Fire . | . . . . Melee . | . . . . Ram 13 | . 3 4 6 Kick . | . . . . Crush . | . . . . Escape Stasis . | . . . . Rewire . | . . . . Trap . | . . . . Miscellaneous . | . . . . Route ------- -11/Junkyard -10/Materials -9/Materials -8/Materials History --------- Turn | Location | Event 3 | -11/Junkyard | Discovered new exit (range 15) 10 | -11/Junkyard | Entered Materials 29 | -10/Materials | Discovered new exit (range 16) 45 | -10/Materials | Core integrity fell below 50% 52 | -10/Materials | Identified exit to Mines 61 | -10/Materials | Discovered new exit (range 6) 62 | -10/Materials | Core integrity fell below 20% 64 | -10/Materials | Entered another Materials area 64 | -9/Materials | Evolved 2 slots: Utility x1, Weapon x1 140 | -9/Materials | Identified exit to Mines 157 | -9/Materials | Core integrity fell below 50% 168 | -9/Materials | Discovered new exit (range 16) 176 | -9/Materials | Entered another Materials area 176 | -8/Materials | Evolved 2 slots: Propulsion x1, Weapon x1 218 | -8/Materials | Discovered new exit (range 15) 220 | -8/Materials | Core integrity fell below 50% 242 | -8/Materials | Core integrity fell below 20% 248 | -8/Materials | Destroyed by C-17 Slicer with Concussive RPG Last Messages --------------- 00220_ Triggered Alarm Trap. 00220_ An alarm sounds. 00220_ ALERT: Alarm triggered, dispatching investigation squad. 00222_ Triggered Shock Trap. 00222_ The floor emits a surge of raw power. 00222_ System corrupted (+2). 00223_ T-07 Excavator is excavating. 00228_ U-05 Engineer lays Concrete. 00230_ Critical hit (Burn: +37). 00233_ ALERT: Suspicious intruders detected, dispatching Cutter reinforcements to area. 00241_ System corrupted: Energy discharge (-24). 00241_ Penetrated by Slug. 00241_ Knocked back. 00242_ Slammed into C-17 Slicer. 00243_ Knocked back. 00243_ C-17 Slicer system corrupted by crushing effect. 00243_ Slammed into C-17 Slicer. 00244_ C-17 Slicer system terminally corrupted. 00247_ K-01 Serf collects debris. Map ----- +----------------------------------------------------+ | | | | | | | | | | | | | | | | | ?????????????????????????????????????????????????? | | ?????????????????????????????????????????????????? | | ?????????????????????????????????????????????????? | | ?????????????????????????????????????????????????? | | ????????????????????????????????##########???????? | | ????????????????????????????????# ######### | | ????????????????????????????????#[ """ + | | ????????????????????????????????# """ ######### | | ????????????????????###+####????# """ #???????? | | ????????????????????? #????# #???????? | | ?????????????????????? #????# """ #???????? | | ??????????????????????? #????# """ #???????? | | ???????????????????????# #????# """% #???????? | | ???????????????????????# #??? # #???????? | | ???????????????????????# #?? ####+#####???????? | | ????????????############ ###/###ss% #######???? | | ?????????? a t | | ?????????? k w @ c H | | ?????????? k | | ???????????# #######+######## #####+##### | | ???????????# ????????????????????#######?????????? | | ?????????????????????????????????????????????????? | | ?????????????????????????????????????????????????? | | ?????????????????????????????????????????????????? | | ?????????????????????????????????????????????????? | | ?????????????????????????????????????????????????? | | ?????????????????????????????????????????????????? | | ?????????????????????????????????????????????????? | | ?????????????????????????????????????????????????? | | ?????????????????????????????????????????????????? | | ?????????????????????????????????????????????????? | | ?????????????????????????????????????????????????? | | ?????????????????????????????????????????????????? | | ?????????????????????????????????????????????????? | | ?????????????????????????????????????????????????? | | ?????????????????????????????????????????????????? | | ?????????????????????????????????????????????????? | | ?????????????????????????????????????????????????? | | ?????????????????????????????????????????????????? | | ?????????????????????????????????????????????????? | | ?????????????????????????????????????????????????? | | ?????????????????????????????????????????????????? | +----------------------------------------------------+ Best States ------------- Heat Dissipation 31 Energy Generation 5 Energy Capacity 100 Matter Stores 197 Matter Capacity 300 Sight Range 16 Terrain Scan Density 10 Evasion (%) 50 Item Schematics ----------------- None Robot Schematics ------------------ None Fabricated ------------ Nothing Alien Tech Used ----------------- None Achievements -------------- None Challenges ------------ Fragile Parts Gauntlet No Salvage Pure Core Scavenger Simple Hacker Trapped Unstable Evolution Game ------ Seed CommImprinterKinecellerator Manual? 0 Play Time 00:04:09 Cumulative 97.0 hours Start 2023.04.13 @ 00:37:02 End 2023.04.13 @ 00:40:10 Sessions 1 Manual Loads 0 Difficulty Rogue Special Mode None Game No. 210 Rogue 210 Adventurer 0 Explorer 0 Win Type - Total 3 Types 3/0/0/0/0/0/0/0/0 Lore% 55 Gallery% 57 Achievement% 48 Wizard Run 0 Options --------- ASCII 0 Keyboard 0 Movement Numpad Keybinds 0 Fullscreen 1 Font 12/Smallcaps Map View 83x54 Tactical HUD 1 Map Filters NONE Filters NONE Steam 1 RUN: 7e8654bb-e58e-4270-8063-adae354ed0ed